{"text_format":"3","workbook":"xlsx","n_sheets":6,"sheets":["SEMESTER","SCHEINE","BUDGET","MONATLICHE NETTOAUSGABEN","SEMESTERAUSGABEN","BÜCHER"],"not_rendered":{"defined_names":21},"read":"whole","date_system":"1900"}

{"sheet":"SEMESTER","index":0,"n_rows":29,"n_cols":9,"rows_kept":29,"merged":[[2,3,2,4]]}
[null,"MEIN KURSPLAN"]
[null,"WINTERSEMESTER"]
[null,null,"STARTZEIT","ZEITINTERVALL",null,"JAHR"]
[null,null,"09:00:00",60,"(In Minuten)"]
[null,"ZEIT ","MO","DI","MI","DO","FR","SA","SO"]
[null,{"$f":"StartZeit+TIME(0,(ROW(A1)-1)*ZeitIntervall,0)","v":"09:00:00"},"Frühstück","Frühstück","Frühstück","Frühstück","Frühstück"]
[null,"10:00:00","Wirtschaft: Vorlesung in Gebäude B, Raum 256"]
[null,"11:00:00",{"$nulls":3},"Physik: Praktische Übung \nGebäude J, Raum 309"]
[null,"12:00:00"]
[null,"13:00:00"]
[null,"14:00:00"]
[null,"15:00:00"]
[null,"16:00:00"]
[null,"17:00:00"]
[null,"18:00:00"]
[null,"19:00:00"]
[null,"20:00:00"]
[null,"21:00:00"]
[null,"22:00:00"]
[null,"23:00:00"]
[null,1]
[null,1.0416666666666665]
[null,1.0833333333333335]
[null,1.125]
[null,1.1666666666666665]
[null,1.2083333333333335]
[null,1.25]
[null,1.2916666666666665]
[null,1.3333333333333335]

{"sheet":"SCHEINE","index":1,"n_rows":17,"n_cols":8,"rows_kept":17}
[null,"HOCHSCHULE"]
[null,"KREDITPLANUNG"]
[null,"ABSCHLUSS ALS",{"$f":"Jahr","v":"JAHR"}]
[null,"FORTSCHRITT GESAMT",null,"FORTSCHRITT GESAMT"]
[null,{"$f":"AVERAGE(Kurse[PUNKTZAHL])","v":3.5},{"$f":"IFERROR(TEXT(AVERAGEIF(Kurse[ABGESCHLOSSEN],\"Ja\",Kurse[PUNKTZAHL]),\"0.00\"),\"0.00\")&\" Aktueller Notendurchschnitt\"","v":"3.50 Aktueller Notendurchschnitt"},{"$f":"COUNTIF(Kurse[ABGESCHLOSSEN],\"Ja\")/COUNTA(Kurse[KURSTITEL])","v":0.6666666666666666},{"$f":"TEXT(COUNTIF(Kurse[ABGESCHLOSSEN],\"Ja\")/COUNTA(Kurse[KURSTITEL]),\"0%\")&\" abgeschlossen\"","v":"67% abgeschlossen"}]
[null,"Hinweis: Die folgende Aufstellung der erworbenen Scheine wird automatisch mithilfe der Einträge in Ihrer Hochschulkurs-Tabelle unten aufgefüllt"]
[null,"ANFORDERUNG","SCHEINE GESAMT","ERHALTEN","ERFORDERLICH"]
[null,"Hauptfächer",{"$f":"IF(SUMIF(Kurse[GEFORDERT],SCHEINE!$B8,Kurse[SCHEINE])=0,\"0\",SUMIF(Kurse[GEFORDERT],SCHEINE!$B8,Kurse[SCHEINE]))","v":4},{"$f":"SUMIFS(Kurse[SCHEINE],Kurse[GEFORDERT],SCHEINE!$B8,Kurse[ABGESCHLOSSEN],\"Ja\")","v":4},{"$f":"SUMIF(Kurse[GEFORDERT],SCHEINE!$B8,Kurse[SCHEINE])-SUMIFS(Kurse[SCHEINE],Kurse[GEFORDERT],SCHEINE!$B8,Kurse[ABGESCHLOSSEN],\"Ja\")","v":0}]
[null,"Nebenfächer",{"$f":"IF(SUMIF(Kurse[GEFORDERT],SCHEINE!$B9,Kurse[SCHEINE])=0,\"0\",SUMIF(Kurse[GEFORDERT],SCHEINE!$B9,Kurse[SCHEINE]))","v":3},{"$f":"SUMIFS(Kurse[SCHEINE],Kurse[GEFORDERT],SCHEINE!$B9,Kurse[ABGESCHLOSSEN],\"Ja\")","v":0},{"$f":"SUMIF(Kurse[GEFORDERT],SCHEINE!$B9,Kurse[SCHEINE])-SUMIFS(Kurse[SCHEINE],Kurse[GEFORDERT],SCHEINE!$B9,Kurse[ABGESCHLOSSEN],\"Ja\")","v":3}]
[null,"Wahlfächer",{"$f":"IF(SUMIF(Kurse[GEFORDERT],SCHEINE!$B10,Kurse[SCHEINE])=0,\"0\",SUMIF(Kurse[GEFORDERT],SCHEINE!$B10,Kurse[SCHEINE]))","v":2},{"$f":"SUMIFS(Kurse[SCHEINE],Kurse[GEFORDERT],SCHEINE!$B10,Kurse[ABGESCHLOSSEN],\"Ja\")","v":2},{"$f":"SUMIF(Kurse[GEFORDERT],SCHEINE!$B10,Kurse[SCHEINE])-SUMIFS(Kurse[SCHEINE],Kurse[GEFORDERT],SCHEINE!$B10,Kurse[ABGESCHLOSSEN],\"Ja\")","v":0}]
[null,"Studium generale",{"$f":"IF(SUMIF(Kurse[GEFORDERT],SCHEINE!$B11,Kurse[SCHEINE])=0,\"0\",SUMIF(Kurse[GEFORDERT],SCHEINE!$B11,Kurse[SCHEINE]))","v":"0"},{"$f":"SUMIFS(Kurse[SCHEINE],Kurse[GEFORDERT],SCHEINE!$B11,Kurse[ABGESCHLOSSEN],\"Ja\")","v":0},{"$f":"SUMIF(Kurse[GEFORDERT],SCHEINE!$B11,Kurse[SCHEINE])-SUMIFS(Kurse[SCHEINE],Kurse[GEFORDERT],SCHEINE!$B11,Kurse[ABGESCHLOSSEN],\"Ja\")","v":0}]
[null,"Ergebnis",{"$f":"SUBTOTAL(109,SCHEINE!$C$8:$C$11)","v":9},{"$f":"SUBTOTAL(109,SCHEINE!$D$8:$D$11)","v":6},{"$f":"SUBTOTAL(109,SCHEINE!$E$8:$E$11)","v":3}]
[null,"Kurse"]
[null,"KURSTITEL","KURS-NR.","GEFORDERT","SCHEINE","ABGESCHLOSSEN","PUNKTZAHL","SEMESTER"]
[null,"Kurs 1","Nummer","Hauptfächer",4,"Ja",{"v":4,"d":"4.0"},"1. Semester"]
[null,"Kurs 2","Nummer","Nebenfächer",3,"Nein",null,"1. Semester"]
[null,"Kurs 3","Nummer","Wahlfächer",2,"Ja",{"v":3,"d":"3.0"},"1. Semester"]

{"sheet":"BUDGET","index":2,"n_rows":15,"n_cols":4,"rows_kept":15}
[null,{"$f":"Hochschule","v":"HOCHSCHULE"}]
[null,"BUDGET-TRACKER"]
[null,"Mein Budget",{"$f":"Jahr","v":"JAHR"}]
[null,"AUSGEGEBENER PROZENTSATZ DER EINKÜNFTE"]
[null,{"$f":"MONATLICHE_NETTOAUSGABEN/MONATLICHE_NETTOEINKÜNFTE","v":{"v":0.7454545454545455,"d":"75%"}}]
[null,{"$f":"B5","v":0.7454545454545455}]
[null,"MONATLICHE NETTOEINKÜNFTE","MONATLICHE NETTOAUSGABEN","SALDO"]
[null,{"$f":"C10","v":{"v":2750,"d":"2,750 €"}},{"$f":"'MONATLICHE NETTOAUSGABEN'!C4+SEMESTERAUSGABEN!D4","v":{"v":2050,"d":"2,050 €"}},{"$f":"MONATLICHE_NETTOEINKÜNFTE-MONATLICHE_NETTOAUSGABEN","v":{"v":700,"d":"700 €"}}]
[null,"Monate/Semester",4]
[null,"MONATLICHE EINKÜNFTE",{"$f":"SUM(MonatlicheEinkünfte[BETRAG])","v":{"v":2750,"d":"2,750 €"}}]
[null,"POSTEN","BETRAG"]
[null,"Festeinkommen",{"v":1500,"d":"1,500 €"}]
[null,"Finanzhilfen",{"v":500,"d":"500 €"}]
[null,"Kredite",{"v":500,"d":"500 €"}]
[null,"Sonstige Einkünfte",{"v":250,"d":"250 €"}]

{"sheet":"MONATLICHE NETTOAUSGABEN","index":3,"n_rows":15,"n_cols":3,"rows_kept":15}
[null,{"$f":"Hochschule","v":"HOCHSCHULE"}]
[null,"BUDGET-TRACKER"]
[null,"Monatliche Ausgaben",{"$f":"Jahr","v":"JAHR"}]
[null,"MONATLICHE AUSGABEN",{"$f":"SUM(MonatlicheAusgaben[BETRAG])","v":{"v":1675,"d":"1,675 €"}}]
[null,"POSTEN","BETRAG"]
[null,"Miete",{"v":300,"d":"300 €"}]
[null,"Nebenkosten",{"v":50,"d":"50 €"}]
[null,"Handykosten",{"v":75,"d":"75 €"}]
[null,"Lebensmittel",{"v":250,"d":"250 €"}]
[null,"Kfz-Kosten",{"v":50,"d":"50 €"}]
[null,"Studienkredite",{"v":500,"d":"500 €"}]
[null,"Kreditkarten",{"v":275,"d":"275 €"}]
[null,"Versicherungen",{"v":125,"d":"125 €"}]
[null,"Unterhaltung",{"v":50,"d":"50 €"}]
[null,"Verschiedenes",{"v":0,"d":"0 €"}]

{"sheet":"SEMESTERAUSGABEN","index":4,"n_rows":11,"n_cols":4,"rows_kept":11}
[null,{"$f":"Hochschule","v":"HOCHSCHULE"}]
[null,"BUDGET-TRACKER"]
[null,"Semesterausgaben",{"$f":"Jahr","v":"JAHR"}]
[null,"SEMESTERAUSGABEN (Summe/pro Monat)",{"$f":"SUM(SemesterAusgaben[BETRAG])","v":{"v":1500,"d":"1,500 €"}},{"$f":"SUM(SemesterAusgaben[PRO MONAT])","v":{"v":375,"d":"375 €"}}]
[null,"POSTEN","BETRAG","PRO MONAT"]
[null,"Unterrichtsgebühren",{"v":750,"d":"750 €"},{"$f":"SemesterAusgaben[[#This Row],[BETRAG]]/Monate_im_Semester","v":{"v":187.5,"d":"188 €"}}]
[null,"Laborgebühren",{"v":250,"d":"250 €"},{"$f":"SemesterAusgaben[[#This Row],[BETRAG]]/Monate_im_Semester","v":{"v":62.5,"d":"63 €"}}]
[null,"Bücher",{"v":500,"d":"500 €"},{"$f":"SemesterAusgaben[[#This Row],[BETRAG]]/Monate_im_Semester","v":{"v":125,"d":"125 €"}}]
[null,"Einzahlungen",{"v":0,"d":"0 €"},{"$f":"SemesterAusgaben[[#This Row],[BETRAG]]/Monate_im_Semester","v":{"v":0,"d":"0 €"}}]
[null,"Verkehrsmittel",{"v":0,"d":"0 €"},{"$f":"SemesterAusgaben[[#This Row],[BETRAG]]/Monate_im_Semester","v":{"v":0,"d":"0 €"}}]
[null,"Sonstige Gebühren",{"v":0,"d":"0 €"},{"$f":"SemesterAusgaben[[#This Row],[BETRAG]]/Monate_im_Semester","v":{"v":0,"d":"0 €"}}]

{"sheet":"BÜCHER","index":5,"n_rows":7,"n_cols":7,"rows_kept":7}
[null,{"$f":"Hochschule","v":"HOCHSCHULE"}]
[null,"BÜCHER"]
[null,"Buchliste"]
[null,"TITEL","AUTOR","KURS","WO KAUFEN?","ISBN","NOTIZEN"]
[null,"Buchtitel","Autor","Kurs","Quelle","Nummer"]
[null,"Buchtitel","Autor","Kurs","Quelle","Nummer"]
[null,"Buchtitel","Autor","Kurs","Quelle","Nummer"]